bitfinex/quotes_BTCUSD_20250218
["timestamp","ask_amount","ask_price","bid_price","bid_amount"]
[1739887025662,0.1567072,96440.0,96439.0,0.19405429]
[1739887026428,0.0011702,96440.0,96439.0,0.19405429]
[1739887027514,0.01625163,96442.0,96439.0,0.19405429]
[1739887027713,0.155535,96441.0,96440.0,0.10250365]
[1739887027969,0.22363063,96442.0,96440.0,0.10250365]
[1739887028169,0.588057,96441.0,96440.0,0.1084537]
[1739887028579,0.588057,96441.0,96440.0,0.10250365]
[1739887028793,0.207382,96440.0,96439.0,0.004]
[1739887029003,4.335373,96440.0,96439.0,0.004]
[1739887029199,4.223339,96440.0,96439.0,0.004]
[1739887030616,4.015957,96440.0,96434.0,0.0003404]
[1739887030806,0.155545,96435.0,96434.0,0.0003404]
[1739887031039,5.070734,96435.0,96434.0,0.0003404]
[1739887031254,5.872022,96435.0,96434.0,0.0003404]
[1739887031457,5.871956,96435.0,96434.0,0.0003404]
[1739887031697,3.948695,96435.0,96434.0,0.0003404]
[1739887032106,3.948695,96435.0,96434.0,0.0043404]
[1739887035928,3.9649482,96435.0,96434.0,0.0043404]
[1739887038660,4.1298612,96435.0,96434.0,0.0043404]
[1739887038875,4.0597612,96435.0,96434.0,0.0043404]
[1739887039438,3.0144242,96435.0,96434.0,0.0043404]
[1739887039656,2.5171712,96435.0,96434.0,0.0043404]
[1739887039869,2.2930152,96435.0,96434.0,0.0043404]
[1739887040339,2.2930152,96435.0,96434.0,0.0003404]
[1739887040797,2.2930152,96435.0,96434.0,0.0033404]
[1739887041099,2.2930152,96435.0,96434.0,0.0003404]
[1739887041419,2.2930152,96435.0,96434.0,0.0023404]
[1739887041944,2.5412152,96435.0,96434.0,0.0023404]
[1739887042207,4.5254642,96435.0,96434.0,0.0023404]
[1739887043093,4.509211,96435.0,96434.0,0.0023404]
[1739887043503,4.509211,96435.0,96434.0,0.0003404]
[1739887043717,4.509211,96435.0,96434.0,0.0023404]
[1739887044139,4.509211,96435.0,96434.0,0.0003404]
[1739887044911,4.510211,96435.0,96434.0,0.0003404]
[1739887046160,4.52646612,96435.0,96434.0,0.0003404]
[1739887052088,4.26965525,96435.0,96434.0,0.0003404]
[1739887052299,4.42520025,96435.0,96434.0,0.0003404]
[1739887052762,1.17435312,96435.0,96434.0,0.0003404]
[1739887052967,5.704603,96435.0,96434.0,0.0003404]
[1739887053177,6.910976,96435.0,96434.0,0.0003404]
[1739887053363,6.910973,96435.0,96434.0,0.0003404]
[1739887054194,6.909973,96435.0,96434.0,0.0003404]
[1739887054406,6.829775,96435.0,96434.0,0.0003404]
[1739887054567,6.831775,96435.0,96434.0,0.0003404]
[1739887057149,6.84803042,96435.0,96434.0,0.0003404]
[1739887057715,6.20410642,96435.0,96434.0,0.0003404]
[1739887058088,1.22535642,96435.0,96434.0,0.0003404]
[1739887058446,1.47786007,96435.0,96416.0,0.00103706]
[1739887058647,0.155593,96405.0,96404.0,0.0758]
[1739887059043,0.155593,96405.0,96404.0,0.0807049]
[1739887059397,0.17185057,96405.0,96404.0,0.0758]
[1739887060835,0.17185057,96405.0,96404.0,0.0828]
[1739887061443,0.19012938,96405.0,96404.0,0.0828]
[1739887061641,0.19012938,96405.0,96404.0,0.0758]
[1739887061837,0.19012938,96405.0,96404.0,0.0808]
[1739887065552,0.17387181,96405.0,96404.0,0.0808]
[1739887066474,2.50733881,96405.0,96404.0,0.005]
[1739887066658,5.86405381,96405.0,96404.0,0.005]
[1739887066868,5.85754781,96405.0,96404.0,0.005]
[1739887067071,5.83882481,96405.0,96404.0,0.005]
[1739887067283,5.81506981,96405.0,96404.0,0.005]
[1739887067487,5.14768981,96405.0,96404.0,0.005]
[1739887067715,0.155604,96398.0,96397.0,0.10250365]
[1739887067917,0.155606,96397.0,96396.0,0.00047192]
[1739887068121,0.155606,96397.0,96396.0,0.10297557]
[1739887068526,0.17186564,96397.0,96396.0,0.10297557]
[1739887069164,0.17186564,96397.0,96396.0,0.00247192]
[1739887070443,0.17186564,96397.0,96396.0,0.00047192]
[1739887070641,0.17186564,96397.0,96396.0,0.00247192]
[1739887071008,0.17186564,96397.0,96396.0,0.00047192]
[1739887071216,0.17186564,96397.0,96396.0,0.10297557]
[1739887071417,0.01625964,96397.0,96396.0,0.10297557]
[1739887071632,0.17186564,96397.0,96396.0,0.10858591]
[1739887071839,0.17186564,96397.0,96396.0,0.11058591]
[1739887072054,0.17186564,96397.0,96396.0,0.10858591]
[1739887072296,0.17186564,96397.0,96396.0,0.10297557]
[1739887072774,0.01827881,96405.0,96397.0,0.207474]
[1739887072981,0.207448,96410.0,96396.0,0.15197557]
[1739887072982,0.031183,96427.0,96402.0,0.0763]
[1739887073187,0.155595,96404.0,96403.0,0.10741975]
[1739887073425,0.14497842,96412.0,96403.0,0.10741975]
[1739887073659,0.155595,96404.0,96403.0,0.10741975]
[1739887075262,0.155595,96404.0,96403.0,0.11041975]
[1739887075470,0.17381154,96405.0,96403.0,0.11041975]
[1739887076290,0.01821854,96405.0,96403.0,0.11041975]
[1739887076490,0.01625757,96408.0,96404.0,0.0764]
[1739887076696,0.01625757,96408.0,96405.0,0.10250365]
[1739887076897,0.01625757,96408.0,96405.0,0.10741871]
[1739887077324,0.01625757,96408.0,96406.0,0.15559]
[1739887077523,0.01625757,96408.0,96407.0,0.10250365]
[1739887077746,1.31244848,96408.0,96407.0,0.10741767]
[1739887077958,1.26497157,96408.0,96407.0,0.34190767]
[1739887078149,1.26497157,96408.0,96407.0,0.39030767]
[1739887078793,0.01625757,96408.0,96407.0,0.39130767]
[1739887078927,0.01625757,96408.0,96407.0,0.23571767]
[1739887079742,0.03238945,96408.0,96407.0,0.23571767]
[1739887079940,0.03238945,96408.0,96407.0,0.39130767]
[1739887080742,0.01625757,96408.0,96407.0,0.39130767]
[1739887080989,0.207423,96422.0,96412.0,0.0762]
[1739887081346,0.01625677,96417.0,96413.0,0.10741076]
[1739887081742,0.17183077,96417.0,96413.0,0.10741076]
[1739887082180,0.01625677,96417.0,96413.0,0.10741076]
[1739887082382,0.2402278,96417.0,96413.0,0.10741076]
[1739887082581,0.155577,96415.0,96413.0,0.10741076]
[1739887082790,0.17183077,96417.0,96413.0,0.10741076]
[1739887083723,0.155577,96416.0,96413.0,0.10741076]
[1739887084311,0.155577,96415.0,96413.0,0.10741076]
[1739887084515,0.155576,96416.0,96413.0,0.10741076]
[1739887084721,0.01625677,96417.0,96413.0,0.11141076]
[1739887084863,0.01625677,96417.0,96414.0,0.0753]
[1739887085067,0.01625677,96417.0,96415.0,0.10740476]
[1739887085286,0.17183077,96417.0,96415.0,0.10740476]
[1739887085723,0.01625677,96417.0,96415.0,0.10740476]
[1739887086553,0.15557,96419.0,96415.0,0.10740476]
[1739887086764,0.155575,96417.0,96415.0,0.10740476]
[1739887087653,0.155575,96417.0,96415.0,0.11040476]
[1739887087900,0.155575,96417.0,96415.0,0.10740476]
[1739887088263,0.01674449,96420.0,96415.0,0.11140476]
[1739887088637,1.486721,96419.0,96415.0,0.11140476]
[1739887088785,0.155574,96417.0,96415.0,0.11140476]
[1739887088985,0.155574,96417.0,96415.0,0.10650365]
[1739887089389,0.155574,96417.0,96416.0,0.00489957]
[1739887089600,1.47954,96417.0,96416.0,0.10740322]
[1739887089962,1.482034,96417.0,96416.0,0.10250365]
[1739887090735,1.32646,96417.0,96416.0,0.10650365]
[1739887090931,0.155572,96418.0,96416.0,0.10650365]
[1739887091134,0.155572,96418.0,96417.0,0.10250365]
[1739887091316,0.155572,96418.0,96417.0,0.1074027]
[1739887091515,1.482042,96418.0,96417.0,0.1074027]
[1739887092941,1.292798,96418.0,96417.0,0.2629767]
[1739887093291,1.304971,96419.0,96417.0,0.1114027]
[1739887093416,1.491721,96419.0,96417.0,0.1114027]
[1739887093624,1.323976,96418.0,96417.0,0.10650365]
[1739887094031,1.44837,96418.0,96417.0,0.10250365]
[1739887094460,1.44837,96418.0,96417.0,0.10650365]
[1739887099290,1.44837,96418.0,96417.0,0.10250365]
[1739887099667,1.44837,96418.0,96417.0,0.10550365]
[1739887100891,1.292798,96418.0,96417.0,0.10550365]
[1739887101287,1.44837,96418.0,96417.0,0.10550365]
[1739887106009,1.44837,96418.0,96417.0,0.003]
[1739887106163,0.155572,96418.0,96417.0,0.003]
[1739887106361,6.284023,96418.0,96417.0,0.003]
[1739887106567,6.08654,96418.0,96417.0,0.003]
[1739887106832,5.944449,96418.0,96417.0,0.003]
[1739887107045,0.155588,96408.0,96407.0,0.0003406]
[1739887107223,3.256863,96408.0,96407.0,0.10284425]
[1739887107823,2.731311,96408.0,96407.0,0.10284425]
[1739887107996,2.731311,96408.0,96407.0,0.0003406]
[1739887107997,3.967637,96408.0,96407.0,0.0003406]
[1739887108198,5.941608,96408.0,96407.0,0.0003406]
[1739887108403,5.963468,96408.0,96407.0,0.0003406]
[1739887108751,5.32118,96408.0,96407.0,0.0003406]
[1739887109108,4.977817,96408.0,96407.0,0.0003406]
[1739887109777,4.771917,96408.0,96407.0,0.0003406]
[1739887109976,4.758903,96408.0,96407.0,0.0003406]
[1739887110705,4.7751611,96408.0,96407.0,0.0003406]
[1739887111706,4.5324601,96408.0,96407.0,0.0003406]
[1739887113397,4.5344601,96408.0,96407.0,0.0003406]
[1739887113784,4.5324601,96408.0,96407.0,0.0003406]
[1739887114000,4.5334601,96408.0,96407.0,0.0003406]
[1739887114371,1.4013331,96408.0,96407.0,0.0003406]
[1739887114575,5.701847,96408.0,96407.0,0.0003406]
[1739887114854,5.7616,96408.0,96407.0,0.0003406]
[1739887115588,5.7606,96408.0,96407.0,0.0003406]
[1739887115818,5.58608819,96408.0,96407.0,0.0003406]
[1739887115982,5.57082919,96408.0,96407.0,0.0003406]
[1739887116189,5.030732,96408.0,96407.0,0.0003406]
[1739887116391,5.031732,96408.0,96407.0,0.0003406]
[1739887116589,5.18732,96408.0,96407.0,0.0003406]
[1739887118442,5.152679,96408.0,96407.0,0.0003406]
[1739887119013,5.16893763,96408.0,96407.0,0.0003406]
[1739887120448,5.15830963,96408.0,96407.0,0.0003406]
[1739887120855,4.66694163,96408.0,96407.0,0.0003406]
[1739887121692,4.46911763,96408.0,96407.0,0.0003406]
[1739887122073,4.42425163,96408.0,96407.0,0.0003406]
[1739887126393,4.407993,96408.0,96407.0,0.0003406]
[1739887126944,4.590992,96408.0,96407.0,0.0003406]
[1739887127160,5.671102,96408.0,96407.0,0.0003406]
[1739887127365,5.708622,96408.0,96407.0,0.0003406]
[1739887127561,5.604007,96408.0,96407.0,0.0003406]
[1739887127977,5.574689,96408.0,96407.0,0.0003406]
[1739887129443,4.682847,96408.0,96407.0,0.0003406]
[1739887131247,4.6830173,96408.0,96407.0,0.0003406]
[1739887131577,4.6625173,96408.0,96407.0,0.0003406]
[1739887132813,4.6222093,96408.0,96407.0,0.0003406]
[1739887137499,1.5252103,96408.0,96407.0,0.0003406]
[1739887137633,0.1567583,96408.0,96407.0,0.0003406]
[1739887137973,6.3126123,96408.0,96407.0,0.0003406]
[1739887138405,6.1067723,96408.0,96407.0,0.0003406]
[1739887138617,5.7865113,96408.0,96407.0,0.0003406]
[1739887138797,5.7071593,96408.0,96407.0,0.0003406]
[1739887139962,5.72341802,96408.0,96407.0,0.0003406]
[1739887140891,5.69956102,96408.0,96407.0,0.0003406]
[1739887141233,5.45650603,96408.0,96407.0,0.0003406]
[1739887141434,5.47076572,96408.0,96407.0,0.0003406]
[1739887141638,5.52865172,96408.0,96407.0,0.0003406]
[1739887142691,4.59053672,96408.0,96407.0,0.0003406]
[1739887142845,4.5744483,96408.0,96407.0,0.0003406]
[1739887148364,4.3130033,96408.0,96407.0,0.0003406]
[1739887149452,0.6150103,96408.0,96407.0,0.0798406]
[1739887150244,0.0001703,96408.0,96407.0,0.0798406]
[1739887150449,0.1557583,96408.0,96407.0,0.0798406]
[1739887150671,0.0001703,96408.0,96407.0,0.33793425]
[1739887151015,0.0001703,96408.0,96407.0,0.18725789]
[1739887152323,0.0001703,96408.0,96407.0,0.34284789]
[1739887153680,0.0001703,96408.0,96407.0,0.38844789]
[1739887153908,0.0001703,96408.0,96407.0,0.39144789]
[1739887154663,0.0001703,96408.0,96407.0,0.38844789]
[1739887155251,0.0001703,96408.0,96407.0,0.40958893]
[1739887156311,0.0001703,96408.0,96407.0,0.41558893]
[1739887161410,0.0001703,96408.0,96407.0,0.73408893]
[1739887164641,0.0001703,96408.0,96407.0,0.55735789]
[1739887164813,0.0001703,96408.0,96407.0,0.71294789]
[1739887166506,0.1557583,96408.0,96407.0,0.50575789]
[1739887166707,0.0001703,96408.0,96407.0,0.43225789]
[1739887166910,0.0001703,96408.0,96407.0,0.42625789]
[1739887167264,0.0001703,96408.0,96407.0,0.43225789]
[1739887167464,0.0001703,96408.0,96407.0,0.42625789]
[1739887167663,0.0001703,96408.0,96407.0,0.58184789]
[1739887167863,0.0001703,96408.0,96407.0,0.58484789]
[1739887168248,0.0001703,96408.0,96407.0,0.42925789]
[1739887169439,0.0001703,96408.0,96407.0,0.43325789]
[1739887169875,0.0001703,96408.0,96407.0,0.42625789]
[1739887170095,0.0001703,96408.0,96407.0,0.58584789]
[1739887172333,0.0001703,96408.0,96407.0,0.43025789]
[1739887173080,0.0001703,96408.0,96407.0,0.58584789]
[1739887173826,0.0001703,96408.0,96407.0,0.43025789]
[1739887174021,0.0001703,96408.0,96407.0,0.58584789]
[1739887174578,0.0001703,96408.0,96407.0,0.43025789]
[1739887178073,0.0001703,96408.0,96407.0,0.58584789]
[1739887178338,0.0001703,96408.0,96407.0,0.43025789]
[1739887185614,0.0001703,96408.0,96407.0,0.58584789]
[1739887185811,0.0001703,96408.0,96407.0,0.43025789]
[1739887186826,0.0001703,96408.0,96407.0,0.66764789]
[1739887187593,0.0001703,96408.0,96407.0,0.51205789]
[1739887189210,0.0001703,96408.0,96407.0,0.66764789]
[1739887190272,0.0001703,96408.0,96407.0,0.51205789]
[1739887190851,0.0001703,96408.0,96407.0,0.66764789]
[1739887191544,0.0001703,96408.0,96407.0,0.51205789]
[1739887192392,0.0001703,96408.0,96407.0,0.50293789]
[1739887192845,0.0001703,96408.0,96407.0,0.65852789]
[1739887196000,0.0001703,96408.0,96407.0,0.50293789]
[1739887196377,0.0001703,96408.0,96407.0,0.65852789]
[1739887200353,0.0001703,96408.0,96407.0,0.65886849]
[1739887202581,0.0001703,96408.0,96407.0,0.70566849]
[1739887204320,0.0001703,96408.0,96407.0,0.70909868]
[1739887204735,0.0001703,96408.0,96407.0,0.71509868]
[1739887204937,0.0001703,96408.0,96407.0,0.7228867]
[1739887207473,0.15556,96426.0,96420.0,0.155567]
[1739887207651,0.15556,96426.0,96421.0,0.10250365]
[1739887207893,0.1454316,96426.0,96421.0,0.10250365]
[1739887208096,0.155558,96427.0,96421.0,0.25807065]
[1739887208299,0.01451734,96427.0,96424.0,0.155562]
[1739887208509,0.155552,96431.0,96425.0,0.25806265]
[1739887208672,3.08148,96430.0,96425.0,0.10250365]
[1739887208873,0.155556,96428.0,96425.0,0.10250365]
[1739887209098,1.708998,96427.0,96425.0,0.10250365]
[1739887209503,0.155555,96429.0,96425.0,0.10250365]
[1739887209705,2.149005,96428.0,96425.0,0.25806365]
[1739887209920,2.149005,96428.0,96425.0,0.10250365]
[1739887210158,2.109541,96428.0,96426.0,0.155558]
[1739887210361,0.01451985,96429.0,96427.0,0.10250365]
[1739887210570,2.043544,96428.0,96427.0,0.10250365]
[1739887210767,2.1991,96428.0,96427.0,0.10250365]
[1739887212540,2.095923,96428.0,96427.0,0.10250365]
[1739887213337,0.0483,96427.0,96407.0,0.32375424]
[1739887213541,0.155586,96410.0,96408.0,0.10250365]
[1739887213705,0.155587,96409.0,96408.0,0.10250365]
[1739887213906,0.09510796,96417.0,96408.0,0.10250365]
[1739887214107,0.155583,96412.0,96408.0,0.10250365]
[1739887214311,0.155584,96411.0,96408.0,0.10250365]
[1739887214494,0.155581,96413.0,96408.0,0.10250365]
[1739887214853,0.207431,96418.0,96408.0,0.10450365]
[1739887215006,0.155577,96415.0,96408.0,0.10450365]
[1739887215227,1.187217,96414.0,96408.0,0.10250365]
[1739887215424,0.155579,96414.0,96408.0,0.10450365]
[1739887215632,0.09510796,96420.0,96409.0,0.0759]
[1739887215868,0.517008,96419.0,96410.0,0.10250365]
[1739887216073,0.09510796,96420.0,96410.0,0.10250365]
[1739887216229,0.155578,96415.0,96410.0,0.10250365]
[1739887216395,0.372817,96414.0,96410.0,0.10250365]
[1739887216984,0.528396,96414.0,96410.0,0.10250365]
[1739887217237,0.155579,96414.0,96410.0,0.10250365]
[1739887217411,0.17183554,96414.0,96410.0,0.10250365]
[1739887217946,0.17183554,96414.0,96411.0,0.00490504]
[1739887218148,0.17183554,96414.0,96412.0,0.10250365]
[1739887218356,0.17183554,96414.0,96413.0,0.00490346]
[1739887218560,2.17266454,96414.0,96413.0,0.10250365]
[1739887218764,1.55927054,96414.0,96413.0,0.10250365]
[1739887218965,1.29221654,96414.0,96413.0,0.10740711]
[1739887219572,1.44779554,96414.0,96413.0,0.10740711]
[1739887219954,1.44779554,96414.0,96413.0,0.10250365]
[1739887221590,0.17183554,96414.0,96413.0,0.10350365]
[1739887221769,0.01625654,96414.0,96413.0,0.10350365]
[1739887221968,1.77048154,96414.0,96413.0,0.10350365]
[1739887222172,0.42240754,96414.0,96413.0,0.10350365]
[1739887222382,0.57798654,96414.0,96413.0,0.10350365]
[1739887222587,0.57798654,96414.0,96413.0,0.10840717]
[1739887223592,0.57798654,96414.0,96413.0,0.10740717]
[1739887223954,0.57798654,96414.0,96413.0,0.10840717]
[1739887224650,0.57798654,96414.0,96413.0,0.10250365]
[1739887225059,0.57798654,96414.0,96413.0,0.10350365]
[1739887226479,0.56173,96414.0,96413.0,0.10350365]
[1739887227275,0.56173,96414.0,96413.0,0.10250365]
[1739887227709,0.56173,96414.0,96413.0,0.10350365]
[1739887236160,0.155579,96414.0,96413.0,0.10350365]
[1739887236375,2.711381,96414.0,96413.0,0.10840717]
[1739887236581,2.196201,96414.0,96413.0,0.10350365]
[1739887237395,2.21245778,96414.0,96413.0,0.10350365]
[1739887237729,2.21245778,96414.0,96413.0,0.10384425]
[1739887238724,0.17183578,96414.0,96413.0,0.10384425]
[1739887238930,3.39629378,96414.0,96413.0,0.10384425]
[1739887239138,3.35629378,96414.0,96413.0,0.10384425]
[1739887241179,3.34184578,96414.0,96413.0,0.10384425]
[1739887243388,3.34184578,96414.0,96413.0,0.0013406]
[1739887243971,3.49184578,96414.0,96413.0,0.0013406]
[1739887244172,0.305583,96411.0,96410.0,0.0003406]
[1739887244379,0.305588,96408.0,96407.0,0.0003406]
[1739887244595,7.511696,96408.0,96407.0,0.0003406]
[1739887244792,9.750324,96408.0,96407.0,0.0003406]
[1739887245412,0.305593,96405.0,96404.0,0.0003406]
[1739887245615,9.673429,96405.0,96404.0,0.0003406]
[1739887246581,8.91747701,96405.0,96404.0,0.0003406]
[1739887246731,8.96497701,96405.0,96404.0,0.0003406]
[1739887246925,8.21967801,96405.0,96404.0,0.0003406]
[1739887247170,7.68724501,96405.0,96404.0,0.0003406]
[1739887247377,7.54192979,96405.0,96404.0,0.0003406]
[1739887247907,0.305606,96397.0,96396.0,0.0003404]
[1739887248044,7.901828,96397.0,96396.0,0.0003404]
[1739887248450,7.590757,96397.0,96396.0,0.0003404]
[1739887249299,7.5908569,96397.0,96396.0,0.0003404]
[1739887252704,7.68905725,96397.0,96396.0,0.0003404]
[1739887253090,7.77185725,96397.0,96396.0,0.0003404]
[1739887253291,0.15565,96370.0,96369.0,0.078]
[1739887253495,0.15565,96370.0,96369.0,0.18050365]
[1739887253699,0.15565,96370.0,96369.0,0.00492571]
[1739887254147,0.155656,96366.0,96365.0,0.0478]
[1739887254364,0.155656,96366.0,96365.0,0.15030365]
[1739887254503,0.1702172,96366.0,96365.0,0.15030365]
[1739887255352,0.17031706,96366.0,96365.0,0.15030365]
[1739887256232,0.17031706,96366.0,96365.0,0.15130365]
[1739887258145,0.18658153,96366.0,96365.0,0.15130365]
[1739887258554,0.17746153,96366.0,96365.0,0.15130365]
[1739887261263,0.17746153,96366.0,96365.0,0.17430365]
[1739887261905,0.17746153,96366.0,96365.0,0.17924483]
[1739887262614,0.17746153,96366.0,96365.0,0.17958543]
[1739887263250,0.95083353,96366.0,96365.0,0.00628178]
[1739887263464,1.26822253,96366.0,96365.0,0.00628178]
[1739887263669,0.97216453,96366.0,96365.0,0.0013406]
[1739887263870,0.03092553,96366.0,96365.0,0.20354425]
[1739887264075,0.03092553,96366.0,96365.0,0.25264425]
[1739887264297,0.03092553,96366.0,96365.0,0.25760189]
[1739887265035,0.01636433,96366.0,96365.0,0.25760189]
[1739887266022,0.01763328,96366.0,96365.0,0.25760189]
[1739887266478,0.01763328,96366.0,96365.0,0.25264425]
[1739887266985,0.17328928,96366.0,96365.0,0.25760019]
[1739887270872,0.17328928,96366.0,96365.0,0.00629654]
[1739887271322,0.17328928,96366.0,96365.0,0.0013406]
[1739887272885,1.70593728,96366.0,96365.0,0.0013406]
[1739887273091,0.155671,96357.0,96356.0,0.0003404]
[1739887274177,0.633253,96357.0,96356.0,0.0003404]
[1739887274413,2.72804,96357.0,96356.0,0.0003404]
[1739887274628,0.155671,96357.0,96356.0,0.0003404]
[1739887274846,4.306659,96357.0,96356.0,0.0003404]
[1739887275042,4.185221,96357.0,96356.0,0.0003404]
[1739887275252,4.300184,96357.0,96356.0,0.0003404]
[1739887275869,4.283186,96357.0,96356.0,0.0003404]
[1739887276069,4.281186,96357.0,96356.0,0.0003404]
[1739887276907,4.38368965,96357.0,96356.0,0.0003404]
[1739887277558,4.38568965,96357.0,96356.0,0.0003404]
[1739887278035,4.40195846,96357.0,96356.0,0.0003404]
[1739887278396,4.29945481,96357.0,96356.0,0.0003404]
[1739887281789,4.29945481,96357.0,96330.0,0.0003402]
[1739887281790,0.305701,96338.0,96330.0,0.0003402]
[1739887282006,3.692923,96338.0,96330.0,0.0003402]
[1739887282165,3.599052,96338.0,96330.0,0.0003402]
[1739887282766,1.038762,96338.0,96337.0,0.1015402]
[1739887282973,0.718614,96338.0,96337.0,0.1015402]
[1739887283172,0.534383,96338.0,96337.0,0.1015402]
[1739887284018,0.536383,96338.0,96337.0,0.1015402]
[1739887284221,0.534383,96338.0,96337.0,0.1015402]
[1739887284446,0.14514871,96348.0,96337.0,0.1015402]
[1739887284447,0.14514871,96350.0,96338.0,0.023]
[1739887284661,0.1557,96339.0,96338.0,0.023]
[1739887286323,1.1014781,96339.0,96338.0,0.023]
[1739887286523,0.305701,96338.0,96337.0,0.0003402]
[1739887286725,4.834724,96338.0,96337.0,0.0003402]
[1739887286942,4.53409,96338.0,96337.0,0.0003402]
[1739887287342,4.082218,96338.0,96337.0,0.0003402]
[1739887287562,4.18472165,96338.0,96337.0,0.0003402]
[1739887287766,3.44290865,96338.0,96337.0,0.0003402]
[1739887287969,3.22312465,96338.0,96337.0,0.0003402]
[1739887288810,3.22312465,96338.0,96337.0,0.0013402]
[1739887289195,3.22312465,96338.0,96337.0,0.0003402]
[1739887289196,3.120621,96338.0,96337.0,0.0003402]
[1739887289430,0.155713,96331.0,96330.0,0.0003402]
[1739887289667,4.924361,96331.0,96330.0,0.0003402]
[1739887289859,3.794808,96331.0,96330.0,0.0003402]
[1739887290062,2.944608,96331.0,96330.0,0.0003402]
[1739887290602,2.944608,96331.0,96330.0,0.00077787]
[1739887290806,2.97167065,96331.0,96330.0,0.00077787]
[1739887290985,2.869167,96331.0,96330.0,0.00077787]
[1739887291703,2.870167,96331.0,96330.0,0.00077787]
[1739887291907,2.464759,96331.0,96330.0,0.00077787]
[1739887292163,2.132748,96331.0,96330.0,0.00077787]
[1739887294871,2.282748,96331.0,96330.0,0.00077787]
[1739887295054,2.38525165,96331.0,96330.0,0.00077787]
[1739887296782,1.27155565,96331.0,96330.0,0.00077787]
[1739887296986,5.26102165,96331.0,96330.0,0.00077787]
[1739887297217,8.95454665,96331.0,96330.0,0.00077787]
[1739887297413,8.51581165,96331.0,96330.0,0.00077787]
[1739887298559,8.413308,96331.0,96330.0,0.00077787]
[1739887298757,4.064238,96331.0,96330.0,0.00077787]
[1739887298913,1.499159,96331.0,96330.0,0.00077787]
[1739887300119,1.574576,96331.0,96330.0,0.00077787]
[1739887300731,1.375931,96331.0,96330.0,0.00077787]
[1739887301664,1.675381,96331.0,96330.0,0.00077787]
[1739887301867,1.533254,96331.0,96330.0,0.00077787]
[1739887302597,1.431929,96331.0,96330.0,0.00077787]
[1739887305233,1.24993608,96331.0,96330.0,0.00077787]
[1739887305575,0.155716,96329.0,96322.0,0.023]
[1739887305699,0.550124,96329.0,96328.0,0.00047172]
[1739887312180,0.328118,96329.0,96328.0,0.00047172]
[1739887312408,0.00277749,96330.0,96329.0,0.023]
[1739887312607,0.15849149,96330.0,96329.0,0.02789093]
[1739887313296,0.15849149,96330.0,96329.0,0.023]
[1739887313668,1.36726149,96330.0,96329.0,0.023]
[1739887313866,1.38094649,96330.0,96329.0,0.023]
[1739887314777,2.30838849,96330.0,96329.0,0.023]
[1739887314982,2.30838849,96330.0,96329.0,0.025]
[1739887314983,2.30351249,96330.0,96329.0,0.025]
[1739887315187,2.84829149,96330.0,96329.0,0.025]
[1739887315399,2.39410749,96330.0,96329.0,0.025]
[1739887316619,2.26277349,96330.0,96329.0,0.025]
[1739887316829,1.24733749,96330.0,96329.0,0.025]
[1739887316985,0.78346649,96330.0,96329.0,0.025]
[1739887317196,0.79973811,96330.0,96329.0,0.025]
[1739887318904,1.74354611,96330.0,96329.0,0.025]
[1739887319087,3.84908111,96330.0,96329.0,0.025]
[1739887319294,3.16885211,96330.0,96329.0,0.025]
[1739887319495,3.01084211,96330.0,96329.0,0.025]
[1739887319703,2.83696611,96330.0,96329.0,0.025]
[1739887320469,2.62382402,96330.0,96329.0,0.025]
[1739887321166,2.31243302,96330.0,96329.0,0.025]
[1739887321598,2.31243302,96330.0,96329.0,0.02239292]
[1739887321804,0.155716,96329.0,96328.0,0.00047172]
[1739887322141,2.242144,96329.0,96328.0,0.10297537]
[1739887322326,0.441834,96329.0,96328.0,0.17897537]
[1739887322561,0.329124,96329.0,96328.0,0.17897537]
[1739887322698,0.48484,96329.0,96328.0,0.1838659]
[1739887322904,0.295939,96329.0,96328.0,0.1838659]
[1739887323108,0.210382,96329.0,96328.0,0.1858659]
[1739887323309,0.334892,96329.0,96328.0,0.1858659]
[1739887323730,0.334892,96329.0,96328.0,0.2088659]
[1739887323930,0.334892,96329.0,96328.0,0.1328659]
[1739887325323,0.155716,96329.0,96328.0,0.1328659]
[1739887325526,1.509826,96329.0,96328.0,0.1308659]
[1739887325941,1.509826,96329.0,96328.0,0.12697537]
[1739887326526,1.509826,96329.0,96328.0,0.12897537]
[1739887328742,1.509826,96329.0,96328.0,0.12851971]
[1739887330501,1.922715,96329.0,96328.0,0.02601606]
[1739887332182,1.922715,96329.0,96328.0,0.02301606]
[1739887332591,1.922715,96329.0,96328.0,0.02401606]
[1739887333276,1.922715,96329.0,96328.0,0.02435686]
[1739887333452,1.922715,96329.0,96328.0,0.02335686]
[1739887333683,1.9238854,96329.0,96328.0,0.02335686]
[1739887334841,1.1146954,96329.0,96328.0,0.02335686]
[1739887335060,0.9292384,96329.0,96328.0,0.02335686]
[1739887335263,0.8407094,96329.0,96328.0,0.02335686]
[1739887335996,0.6849934,96329.0,96328.0,0.02335686]
[1739887336198,0.0001704,96329.0,96328.0,0.33137751]
[1739887336400,0.0001704,96329.0,96328.0,0.25876051]
[1739887336609,0.0001704,96329.0,96328.0,0.25776051]
[1739887336780,0.1558864,96329.0,96328.0,0.25776051]
[1739887336982,0.1558864,96329.0,96328.0,0.26365369]
[1739887337179,0.1558864,96329.0,96328.0,0.25776051]
[1739887337381,0.0001704,96329.0,96328.0,0.262651]
[1739887338001,0.1558864,96329.0,96328.0,0.262651]
[1739887338603,0.1558864,96329.0,96328.0,0.264651]
[1739887338787,0.1558864,96329.0,96328.0,0.25776051]
[1739887338987,0.7012924,96329.0,96328.0,0.262651]
[1739887339185,0.7012924,96329.0,96328.0,0.265651]
[1739887339431,0.7012924,96329.0,96328.0,0.03124735]
[1739887339432,1.5028784,96329.0,96328.0,0.03124735]
[1739887339811,1.50904805,96329.0,96328.0,0.00335686]
[1739887339995,1.50904805,96329.0,96328.0,0.00035686]
[1739887340196,1.50904805,96329.0,96328.0,0.02535686]
[1739887341642,1.4065444,96329.0,96328.0,0.02535686]
[1739887342042,0.2460514,96329.0,96328.0,0.10125686]
[1739887342269,0.2460514,96329.0,96328.0,0.10484934]
[1739887342487,0.0001704,96329.0,96328.0,0.10584934]
[1739887342812,0.7024124,96329.0,96328.0,0.10484934]
[1739887343241,1.5779924,96329.0,96328.0,0.02335686]
[1739887343661,1.5769924,96329.0,96328.0,0.02335686]
[1739887343867,1.5769924,96329.0,96328.0,0.02435686]
[1739887344220,1.5769924,96329.0,96328.0,0.02335686]
[1739887345490,1.5779924,96329.0,96328.0,0.02335686]
[1739887345904,1.5769924,96329.0,96328.0,0.02335686]
[1739887346125,1.5779924,96329.0,96328.0,0.02335686]
[1739887346541,0.305735,96317.0,96316.0,0.0003406]